Cogmind - Beta 13 @@@ ROGUE MODE // 2024.04.21 @ 10:23:28 Player: Darch Result: Destroyed by X-62 Marksman with Gauss Rifle Performance ------------- Evolutions (4) 2000 Regions Visited (7) 1400 Robots Destroyed (29) 145 Value Destroyed (1171) 1171 Prototype IDs (3) 60 Alien Tech Used (0) 0 Bonus (500) 500 TOTAL SCORE: 5276 Bonus ------- Entered DSFs 500 Cogmind --------- Core Integrity 0/850 Matter 145/300 Energy 100/100 System Corruption 5% Temperature Cool (18) Movement Core (50) Location -6/DSF Parts ------- > --- POWER (2) -------- (None) > --- PROPULSION (4) --- (None) > --- UTILITY (6) ------ (None) > --- WEAPON (3) ------- (None) > --- INVENTORY (5) ---- Aluminum Leg Compact Wheel Terrain Scan Processor Advanced System Restoration Module Peak State ------------ > --- POWER ------------ Fission Core Fission Core > --- PROPULSION ------- Titanium Leg > --- UTILITY ---------- Small Storage Unit Launcher Loader Hardlight Generator Advanced System Restoration Module > --- WEAPON ----------- Particle Gun Advanced Assault Cannon > --- INVENTORY -------- Aluminum Leg Compact Wheel Terrain Scan Processor Advanced System Restoration Module [Rating: 40] Favorites ----------- Power Ion Engine Engine Ion Engine Power Core Nuclear Core Propulsion Light Treads Treads Light Treads Leg Carbon-fiber Leg Flight Unit Improved Flight Unit Utility Small Storage Unit Device Terrain Scanner Storage Small Storage Unit Protection Light Armor Plating Weapon Gauss Rifle Energy Gun Medium Laser Ballistic Gun Gauss Rifle Ballistic Cannon Advanced Assault Cannon Launcher Grenade Launcher Impact Weapon Hammer Build | -11 -10 -10 -9 -8 -7 -6 -6 ------- Run | Yrd Mat Min Mat Mat Fac Fac DSF Slots Evolved 8 | . . . 2 2 2 2 . Power 1 | . . . . . 1 . . Propulsion 2 | . . . . 2 . . . Utility 4 | . . . 2 . . 2 . Weapon 1 | . . . . . 1 . . Parts Attached 56 | 6 6 5 3 14 15 . 7 Power 9 | 1 1 . . 2 3 . 2 Engine 5 | 1 1 . . 1 2 . . Core 4 | . . . . 1 1 . 2 Reactor . | . . . . . . . . Propulsion 10 | 2 2 . . 3 3 . . Treads 5 | 2 2 . . 1 . . . Leg 4 | . . . . 1 3 . . Wheel . | . . . . . . . . Hover . | . . . . . . . . Flight 1 | . . . . 1 . . . Utility 9 | 1 . 1 1 1 4 . 1 Device 5 | . . 1 . . 3 . 1 Storage 3 | 1 . . . 1 1 . . Processor . | . . . . . . . . Hackware . | . . . . . . . . Protection 1 | . . . 1 . . . . Artifact . | . . . . . . . . Weapon 28 | 2 3 4 2 8 5 . 4 Energy Gun 12 | 2 1 2 1 2 4 . . Energy Cannon . | . . . . . . . . Ballistic Gun 8 | . . 2 . 6 . . . Ballistic Cannon 5 | . . . . . 1 . 4 Launcher 2 | . 2 . . . . . . Special Weapon . | . . . . . . . . Impact Weapon 1 | . . . 1 . . . . Slashing Weapon . | . . . . . . . . Piercing Weapon . | . . . . . . . . Special Melee Weapon . | . . . . . . . . Unidentified Prototypes 3 | . . . . 3 . . . Parts Lost 32 | . . 3 7 2 9 . 11 Power 5 | . . . 1 . 2 . 2 Propulsion 7 | . . . 2 1 3 . 1 Utility 7 | . . 1 2 . . . 4 Weapon 13 | . . 2 2 1 4 . 4 Highest Loss Streak 11 | . . 2 7 1 3 . 11 To Critical Strikes 1 | . . . 1 . . . . Average Slot Usage (%) 73 | . 77 99 62 37 72 40 36 Engine 8 | . 11 14 8 3 5 . . Core 3 | . . . . 6 6 . 5 Treads 12 | . 26 28 17 2 . . . Leg 6 | . . . . 4 18 6 2 Device 9 | . . 13 . . 13 13 10 Storage 9 | . 14 14 9 4 7 6 6 Energy Gun 8 | . 14 16 3 1 5 6 4 Ballistic Gun 8 | . . 4 8 15 10 . . Launcher 3 | . 10 7 . . . . . Naked Turns 18 | . . . 12 . . . 6 Heaviest Build 54 | 14 15 16 16 19 37 22 54 Greatest Support 52 | 40 40 40 40 20 52 17 17 Greatest Overweight (x) 17 | 1 2 . 2 4 2 1 17 Average Overweight (x) . | . . . . 1 . 1 3 Largest Inventory Capacity 20 | 8 8 8 8 8 20 8 8 Average Capacity 7 | 7 8 8 7 6 8 8 7 Most Carried 8 | 2 5 6 6 6 8 4 6 Average Carried 4 | 1 3 5 5 4 4 4 4 Final Capacity 8 | 8 8 8 5 8 8 8 5 Final Carried 6 | 2 5 6 5 3 4 4 4 Class Distribution -------------------- 79% | Mutant 15% | Scavenger-Tank 4% | Scavenger-Mutant Dominant Class ---------------- Mutant | -10/Materials Mutant | -10/Mines Mutant | -9/Materials Mutant | -8/Materials Scavenger-Tank | -7/Factory Mutant | -6/Factory Mutant | -6/DSF Resources | -11 -10 -10 -9 -8 -7 -6 -6 ----------- Run | Yrd Mat Min Mat Mat Fac Fac DSF Matter Collected 1106 | 232 27 206 62 246 332 . 1 Remotely . | . . . . . . . . Salvage Created 954 | 30 22 167 83 181 471 . . Parts 50 | 2 2 15 2 8 21 . . Haulers Intercepted 1 | . . . . 1 . . . Recyclers Shooed 1 | . . 1 . . . . . Parts Field Recycled . | . . . . . . . . Retrieved Matter . | . . . . . . . . Parts Self-Destructed . | . . . . . . . . Prevented . | . . . . . . . . Kills | -11 -10 -10 -9 -8 -7 -6 -6 ------- Run | Yrd Mat Min Mat Mat Fac Fac DSF Combat Hostiles Destroyed 24 | . 1 7 2 3 11 . . Melee 1 | . . . 1 . . . . Guns 13 | . . 5 . 3 5 . . Cannons 2 | . . . . . 2 . . AOE 7 | . 1 2 . . 4 . . Classes Destroyed 10 | 1 2 2 . 2 3 . . Builder 1 | . 1 . . . . . . Tunneler 1 | 1 . . . . . . . Hauler 1 | . . . . 1 . . . Operator 1 | . . . . . 1 . . Watcher 1 | . . . . . 1 . . Swarmer 3 | . . 3 . . . . . Grunt 14 | . 1 2 1 1 9 . . Sentry 4 | . . 2 1 . 1 . . Hunter 2 | . . . . 2 . . . Programmer 1 | . . . . . 1 . . Best Kill Streak 3 | 1 2 3 1 1 3 . . Combat Bots Only 3 | . 1 3 1 1 2 . . Max Kills in Single Turn 2 | 1 1 1 1 1 2 . . Gunslinging . | . . . . . . . . Exploded 2 | . 1 1 . . 2 . . Melee 1 | . . . 1 . . . . Uniques/NPCs Destroyed . | . . . . . . . . Combat | -11 -10 -10 -9 -8 -7 -6 -6 -------- Run | Yrd Mat Min Mat Mat Fac Fac DSF Hostile Shots Fired 547 | . 6 36 89 51 166 . 199 Missed 178 | . 3 5 25 11 59 . 75 Damage Taken 5025 | . 32 444 902 569 1170 . 1908 Core 1830 | . . 111 393 160 300 . 866 Absorbed by Shields 368 | . . . . . 368 . . Core Remaining (%) 56 | 100 . 55 1 70 57 . . Volleys Fired 102 | 2 4 26 7 22 33 . 8 Largest 3 | 2 1 2 2 2 3 . 3 Hottest 171 | 90 30 90 60 73 131 . 171 Shots Fired 194 | 4 4 43 8 43 78 . 14 Gun 153 | 4 . 34 8 43 62 . 2 Cannon 28 | . . . . . 16 . 12 Launcher 13 | . 4 9 . . . . . Special . | . . . . . . . . Kinetic 123 | . . 11 7 41 52 . 12 Thermal 28 | 2 . 6 . . 18 . 2 Explosive 13 | . 4 9 . . . . . Electromagnetic 30 | 2 . 17 1 2 8 . . Robot Hit Streak 12 | 3 4 12 4 9 7 . 7 Robot Miss Streak 6 | 1 1 3 3 4 6 . 2 Penetration Max 1 | . . . . . 1 . . Secondary Targets 1 | . . . . . 1 . . Max Gunslinging Chain 1 | . . . . . 1 . . Shots Hit Robots 137 | 3 3 26 18 28 48 . 11 Core Hits 66 | 1 4 14 4 12 29 . 2 Critical Kills 1 | . . . 1 . . . . Critical Parts Destroyed 3 | . . . 2 . 1 . . Critical Strikes 9 | . . 1 3 . 4 . 1 Burn 4 | . . 1 . . 2 . 1 Destroy 1 | . . . . . 1 . . Blast 1 | . . . . . 1 . . Smash 3 | . . . 3 . . . . Melee Attacks 20 | . . . 20 . . . . Impact 20 | . . . 20 . . . . Slashing . | . . . . . . . . Piercing . | . . . . . . . . Sneak Attacks . | . . . . . . . . Combat Hostiles . | . . . . . . . . Follow-up Attacks . | . . . . . . . . Damage Inflicted 3236 | 36 232 418 326 458 1462 . 304 Guns 1546 | 36 . 196 58 458 765 . 33 Cannons 588 | . . . . . 317 . 271 Explosions 816 | . 232 222 . . 362 . . Melee 263 | . . . 263 . . . . Ramming 23 | . . . 5 . 18 . . Kinetic 1598 | . . 32 36 427 832 . 271 Thermal 281 | 24 . 65 . . 159 . 33 Explosive 634 | . 232 181 . . 221 . . Electromagnetic 437 | 12 . 140 22 31 232 . . Impact 263 | . . . 263 . . . . Slashing . | . . . . . . . . Piercing . | . . . . . . . . Highest Corruption 5 | . . . . . 3 . 5 Average Corruption 2 | . . . . . 2 . 3 Corruption Purged 1 | . . . . . 1 . . Corruption Blocked . | . . . . . . . . Effects 13 | . . . . . 12 . 1 Message Errors 2 | . . . . . 1 . 1 Matter Fused 2 | . . . . . 2 . . Heat Flow Errors 3 | . . . . . 3 . . Energy Discharges 3 | . . . . . 3 . . Data Loss (major) 2 | . . . . . 2 . . Alerts 1 | . . . . . 1 . . Overload Shots . | . . . . . . . . Overflow Damage 120 | . 4 . 39 . 76 . 1 Projectiles 1 | . . . . . . . 1 Explosions 80 | . 4 . . . 76 . . Melee 39 | . . . 39 . . . . Knockbacks 17 | . . . . . 11 . 6 Impact . | . . . . . . . . Kinetic 12 | . . . . . 7 . 5 Secondary 5 | . . . . . 4 . 1 Self-Inflicted Damage 336 | . . 36 . . 300 . . Shots 6 | . . 1 . . 5 . . Rammed 1 | . . . 1 . . . . Targets Rammed 3 | . . . 1 . 2 . . Kicked 2 | . . . . . 2 . . Crushed . | . . . . . . . . Highest Temperature 308 | 60 . 162 20 8 308 . 48 Average Temperature 68 | 31 . 66 10 3 85 . 25 Received Heat Transfer 1124 | . 18 150 420 9 413 . 114 Siege Activations . | . . . . . . . . Robots Corrupted . | . . . . . . . . Combat Hostiles . | . . . . . . . . Parts Fried . | . . . . . . . . Impact Corruptions 2 | . . . 2 . . . . Robots Melted . | . . . . . . . . Combat Hostiles . | . . . . . . . . Parts Melted 2 | . . 1 . . 1 . . Heat Transferred 851 | 74 . 148 . . 481 . 148 Parts Sabotaged . | . . . . . . . . Parts Stolen . | . . . . . . . . Parts Stripped . | . . . . . . . . Power Chain Reactions 2 | . . 1 . . 1 . . Alert | -11 -10 -10 -9 -8 -7 -6 -6 ------- Run | Yrd Mat Min Mat Mat Fac Fac DSF Peak Influence 322 | 5 61 116 122 134 322 110 92 Initial 105 | . 3 23 44 29 24 105 77 Average 67 | . 21 30 63 51 132 106 56 Maximum Alert Level 1 | . . . . . 1 . . Low Security (%) 95 | 100 100 100 100 100 85 100 100 Level 1 4 | . . . . . 14 . . Level 2 . | . . . . . . . . Level 3 . | . . . . . . . . Level 4 . | . . . . . . . . Level 5 . | . . . . . . . . High Security . | . . . . . . . . Max Security . | . . . . . . . . Squads Dispatched 11 | . 3 . 1 . 5 1 1 Investigation 5 | . 1 . . . 3 1 . Extermination 2 | . . . . . 2 . . Reinforcement 4 | . 2 . 1 . . . 1 Assault . | . . . . . . . . Garrison . | . . . . . . . . Intercept . | . . . . . . . . Searches Triggered . | . . . . . . . . Construction Impeded . | . . . . . . . . Haulers Reinforced . | . . . . . . . . Active Scanning Responses . | . . . . . . . . Cargo Convoy Interrupts . | . . . . . . . . Stealth | -11 -10 -10 -9 -8 -7 -6 -6 --------- Run | Yrd Mat Min Mat Mat Fac Fac DSF Distress Signals 1 | . . . . 1 . . . Communications Jammed . | . . . . . . . . Distress Signals . | . . . . . . . . Times Spotted 57 | . 6 7 5 12 18 . 9 Peak Tracking Total 8 | . 5 3 3 3 3 . 8 Tactical Retreats 2 | . . . . . 1 . 1 Traps | -11 -10 -10 -9 -8 -7 -6 -6 ------- Run | Yrd Mat Min Mat Mat Fac Fac DSF Traps Triggered 8 | . 3 . . 3 2 . . Indirectly . | . . . . . . . . Trap Hack Attempts . | . . . . . . . . Triggered . | . . . . . . . . Disarmed . | . . . . . . . . Reprogrammed . | . . . . . . . . Reused . | . . . . . . . . Traps Extracted . | . . . . . . . . Installed . | . . . . . . . . Triggered 1 | . . . . . 1 . . Machines | -11 -10 -10 -9 -8 -7 -6 -6 ---------- Run | Yrd Mat Min Mat Mat Fac Fac DSF Machines Disabled 13 | . 1 2 . . 10 . . Max in Single Turn 3 | . 1 2 . . 3 . . Machines Repaired . | . . . . . . . . Machines Dismantled . | . . . . . . . . Machines Sabotaged . | . . . . . . . . Overloaded Fab Kills . | . . . . . . . . Hacking | -11 -10 -10 -9 -8 -7 -6 -6 --------- Run | Yrd Mat Min Mat Mat Fac Fac DSF Machines Accessed 9 | . 1 . 2 . 5 1 . Terminals 7 | . 1 . 2 . 3 1 . Fabricators 2 | . . . . . 2 . . Repair Stations . | . . . . . . . . Recycling Units . | . . . . . . . . Scanalyzers . | . . . . . . . . Garrison Access . | . . . . . . . . Total Hacks 22 | . 3 . 5 . 11 3 . Successful 8 | . 1 . 2 . 4 1 . Failed 14 | . 2 . 3 . 7 2 . Catastrophic 1 | . . . . . 1 . . Database Lockouts . | . . . . . . . . Manual 5 | . . . 5 . . . . Terminals 18 | . 3 . 5 . 7 3 . Fabricators 4 | . . . . . 4 . . Repair Stations . | . . . . . . . . Recycling Units . | . . . . . . . . Scanalyzers . | . . . . . . . . Garrison Access . | . . . . . . . . Terminal Hacks 5 | . 1 . . . 3 1 . Record 1 | . . . . . 1 . . Robot Schematic 1 | . . . . . 1 . . Open DSF 2 | . . . . . 1 1 . Emergency Access Points 1 | . 1 . . . . . . Fabricator Hacks 1 | . . . . . 1 . . Build 1 | . . . . . 1 . . Repair Station Hacks . | . . . . . . . . Recycling Unit Hacks . | . . . . . . . . Scanalyzer . | . . . . . . . . Garrison Access Hacks . | . . . . . . . . Unauthorized Hacks 2 | . . . 2 . . . . Terminals 2 | . . . 2 . . . . Botnet 2 | . . . 2 . . . . Fabricators . | . . . . . . . . Repair Stations . | . . . . . . . . Recycling Units . | . . . . . . . . Scanalyzers . | . . . . . . . . Garrison Access . | . . . . . . . . Data Cores Recovered . | . . . . . . . . Used . | . . . . . . . . Hacking Detections 9 | . 1 . 2 . 5 1 . Full Trace Events 4 | . 1 . . . 2 1 . Feedback Events 1 | . . . . . 1 . . Corruption 1 | . . . . . 1 . . Feedback Blocked . | . . . . . . . . Robot Schematics Acquired 1 | . . . . . 1 . . Robots Built . | . . . . . . . . Authchips . | . . . . . . . . Time . | . . . . . . . . Total Robot Build Rating . | . . . . . . . . Part Schematics Acquired . | . . . . . . . . Parts Built 2 | . . . . . 2 . . Authchips . | . . . . . . . . Time 53 | . . . . . 53 . . Total Part Build Rating 12 | . . . . . 12 . . Parts Repaired . | . . . . . . . . Time . | . . . . . . . . Parts Recycled . | . . . . . . . . Recycled Matter . | . . . . . . . . Retrieved Matter . | . . . . . . . . Retrieved Components . | . . . . . . . . Parts Scanalyzed . | . . . . . . . . Part Schematics Acquired . | . . . . . . . . Parts Damaged . | . . . . . . . . Bothacking | -11 -10 -10 -9 -8 -7 -6 -6 ------------ Run | Yrd Mat Min Mat Mat Fac Fac DSF Used RIF Installer . | . . . . . . . . Robots Hacked . | . . . . . . . . Non-combat . | . . . . . . . . Combat . | . . . . . . . . Robot Hacks Applied . | . . . . . . . . Relay Couplers Released . | . . . . . . . . Fabnet Peak Effective % . | . . . . . . . . Robots Rewired . | . . . . . . . . Allies Hacked . | . . . . . . . . Hacks Repelled . | . . . . . . . . Allies | -11 -10 -10 -9 -8 -7 -6 -6 -------- Run | Yrd Mat Min Mat Mat Fac Fac DSF Total Allies . | . . . . . . . . Largest Group . | . . . . . . . . Highest-Rated Group . | . . . . . . . . Highest-Rated Ally . | . . . . . . . . Total Orders . | . . . . . . . . Ally Attacks . | . . . . . . . . Total Damage . | . . . . . . . . Kills . | . . . . . . . . Allies Corrupted . | . . . . . . . . Allies Melted . | . . . . . . . . Intel | -11 -10 -10 -9 -8 -7 -6 -6 ------- Run | Yrd Mat Min Mat Mat Fac Fac DSF Robot Analysis Total . | . . . . . . . . Derelict Logs Recovered 3 | . . 3 . . . . . Drone Launches . | . . . . . . . . Drone Recoveries . | . . . . . . . . Exploration | -11 -10 -10 -9 -8 -7 -6 -6 ------------- Run | Yrd Mat Min Mat Mat Fac Fac DSF Turns Passed 3568 | 85 182 1166 287 629 1066 28 125 Spaces Moved 1806 | 46 103 674 153 249 539 15 27 Core 115 | 5 4 . 32 68 . . 6 Treads 1011 | 41 99 674 121 76 . . . Legs 680 | . . . . 105 539 15 21 Wheels . | . . . . . . . . Hover . | . . . . . . . . Flight . | . . . . . . . . Fastest Speed 50 | 50 100 160 50 120 122 200 200 Average Speed 162 | 151 158 160 138 183 154 200 320 Slowest Speed 900 | 160 160 160 160 250 260 200 900 Overloaded Moves . | . . . . . . . . Propulsion Burnouts . | . . . . . . . . Robots Hopped . | . . . . . . . . Cave-ins Triggered . | . . . . . . . . Exploration Rate (%) 25 | 4 22 95 16 18 16 1 28 Regions Visited 7 Branch Regions 1 Pre-discovered Areas 2 | . . 2 . . . . . Known Exits Taken 1 | . . . . . . 1 . Unknown Exits Taken 6 | 1 1 1 1 1 1 . . Scrap Searched 1 | . . 1 . . . . . Spaces Dug 3 | . . . 3 . . . . Terrain Destroyed 90 | . 9 35 3 . 43 . . Melee 3 | . . . 3 . . . . Projectile . | . . . . . . . . AOE 87 | . 9 35 . . 43 . . Terrain Rammed . | . . . . . . . . Walls Destroyed . | . . . . . . . . Machines Disabled . | . . . . . . . . Actions | -11 -10 -10 -9 -8 -7 -6 -6 --------- Run | Yrd Mat Min Mat Mat Fac Fac DSF Total 2229 | 55 116 720 185 385 704 14 50 Wait 210 | . . 12 . 90 101 . 7 Move 1799 | 45 102 673 152 248 538 14 27 Hop . | . . . . . . . . Pick Up 21 | 2 3 3 . 6 6 . 1 Fast Attach 34 | 6 5 1 1 5 10 . 6 Attach 18 | . 1 3 2 7 4 . 1 Detach 10 | . 1 1 2 2 4 . . Swap 4 | . . 1 . 2 1 . . Drop 8 | . . . . 3 5 . . Fire 102 | 2 4 26 7 22 33 . 8 Melee 20 | . . . 20 . . . . Ram . | . . . . . . . . Kick 2 | . . . . . 2 . . Crush 1 | . . . 1 . . . . Escape Stasis . | . . . . . . . . Rewire . | . . . . . . . . Trap . | . . . . . . . . Miscellaneous . | . . . . . . . . Route ------- -11/Scrapyard -10/Materials -10/Mines (discovered 3 exits: *Mat x2 / [Sub]) -9/Materials -8/Materials -7/Factory -6/Factory -6/DSF History --------- Turn | Location | Event 13 | -11/Scrapyard | Discovered new exit (range 15) 86 | -11/Scrapyard | Entered Materials 216 | -10/Materials | Discovered new exit (range 15) 268 | -10/Materials | Entered Mines 279 | -10/Mines | Met a Derelict bent on vengeance 308 | -10/Mines | Build established: Mutant 522 | -10/Mines | Learned location of Storage (-7) 684 | -10/Mines | Learned Materials security intel 706 | -10/Mines | Discovered new exit (range 9) 810 | -10/Mines | Found a hidden stash of uninstalled traps 850 | -10/Mines | Learned Materials trap positions 909 | -10/Mines | Discovered new exit (range 11) 1411 | -10/Mines | Discovered new exit (range 5) 1434 | -10/Mines | Entered Materials 1434 | -9/Materials | Evolved 2 slots: Utility x2 1435 | -9/Materials | Loaded intel: 27 trap records 1689 | -9/Materials | Core integrity fell below 50% 1700 | -9/Materials | Core integrity fell below 20% 1719 | -9/Materials | Discovered new exit (range 4) 1721 | -9/Materials | Entered another Materials area 1721 | -8/Materials | Evolved 2 slots: Propulsion x2 1740 | -8/Materials | Lost 7 parts (1p2n2u2w) 2254 | -8/Materials | Discovered new exit (range 16) 2350 | -8/Materials | Entered Factory 2350 | -7/Factory | Evolved 2 slots: Power x1, Weapon x1 2497 | -7/Factory | Fabricated Adv. System Restoration Module (x2) 2800 | -7/Factory | Build established: Scavenger-Tank 3138 | -7/Factory | Lost 3 parts (2n1w) 3272 | -7/Factory | Lost 3 parts (1p1n1w) 3382 | -7/Factory | Discovered new exit (range 16) 3416 | -7/Factory | Entered another Factory area 3416 | -6/Factory | Evolved 2 slots: Utility x2 3434 | -6/Factory | Identified exit to DSF 3444 | -6/Factory | Entered DSF 3458 | -6/DSF | Found Launcher Loader 3470 | -6/DSF | Additional patrols routed to DSF 3548 | -6/DSF | Build established: Mutant 3558 | -6/DSF | Core integrity fell below 50% 3568 | -6/DSF | Core integrity fell below 20% 3569 | -6/DSF | Destroyed by X-62 Marksman with Gauss Rifle Last Messages --------------- 03543_ Launcher Loader destroyed. 03547_ Penetrated by Slug. 03548_ Magnetic Acceleration Cannon blasted off. 03548_ Knocked back. 03548_ Acquired Magnetic Acceleration Cannon. 03549_ Penetrated by Slug. 03552_ EIEF %TYBVLC=SY4MYML,Y JB%U72MD5DTAXSWO 03552_ Fission Core destroyed. 03554_ Acquired Magnetic Acceleration Cannon. 03554_ Penetrated by Slug. 03555_ X-72 Disruptor knocked back. 03556_ Penetrated by Slug. 03558_ Magnetic Acceleration Cannon destroyed. 03560_ X-72 Disruptor knocked back. 03563_ C-30 ARC bursts open, deploying its payload. 03563_ S-27 Virus unfolds itself. 03563_ Sml. Storage Unit destroyed. 03563_ Magnetic Acceleration Cannon destroyed. 03564_ Penetrated by Slug. Map ----- +----------------------------------------------------+ | | | | | | | | | ??????????????????????????????????? | | ??????????????????????????????????? | | ??????????????????????????????????? | | ??????????????????????????????????? | | ??????????????????????????????????? | | ??????????????????????????????????? | | ??????????????????????????????????? | | ??????????????????????????????????? | | ??????????????????????????????????? | | ??????????????????????????????????? | | ??????????????????????????????????? | | ??????????????????????????????????? | | ??????????????????????# ?????????? | | ?????????????????????## #????????? | | ??????????????????????! !????????? | | ??????????????????????! !????????? | | ????????????????????### #????????? | | ????????????????????#!! ????????? | | ????????????????????#!! ????????? | | ????????????????????#!! ????????? | | ?????????????????###??# ###??????? | | ?????????????#!??#!!!?# ]@ ##?????? | | ????????????##!!!#!!!;; ] ; #????? | | ??????????? s s %!!%%#????? | | ??????????? s %H x x !!###????? | | ??????????? % % !!;??????? | | ????????????##!!!# ;; %**#??????? | | ?????????????#!??# ## %#??????? | | ?????????????????######Y ###??????? | | ????????????????????#!! !#???????? | | ????????????????????#!! !#???????? | | ????????????????????#!! !#???????? | | ????????????????????### ##???????? | | ????????????????????#!!x #???????? | | ????????????????????#! #???????? | | ????????????????????### ##???????? | | ?????????????????#???## ###??????? | | ????????????##!!!# ## ""###????? | | ????????? """""#???? | | ????????? ""##"#???? | | ?????????!! # # ##"""""#??????? | | ?????????????#???###?#"""""#??????? | | ?????????????????????##"####??????? | | ??????????????????????#"??????????? | | ??????????????????????#"??????????? | | ??????????????????????????????????? | +----------------------------------------------------+ Best States ------------- Heat Dissipation 37 Energy Generation 31 Energy Capacity 520 Matter Stores 300 Matter Capacity 300 Sight Range 16 Terrain Scan Range 14 Terrain Scan Density 10 Armor Coverage 150 Evasion (%) 55 Recoil Reduction 2 Item Schematics ----------------- None Robot Schematics ------------------ B-48 Gladiator | -7/Factory | Hacked Fabricated ------------ Adv. System Restoration Module | x2 | -7/Factory | Preloaded Alien Tech Used ----------------- None Achievements -------------- Just What I Needed Please Form A Line Challenges ------------ None Game ------ Seed ThrusterRocketScythe Manual? 0 Play Time 00:39:37 Cumulative 12.2 hours Start 2024.04.21 @ 09:42:57 End 2024.04.21 @ 10:23:28 Sessions 1 Manual Loads 0 Difficulty Rogue Special Mode None Game No. 19 Rogue 18 Adventurer 1 Explorer 0 Win Type - Total 0 Types 0/0/0/0/0/0/0/0/0 Lore% 9 Gallery% 14 Achievement% 16 Wizard Run 0 Options --------- Layout 1 ASCII 0 Keyboard 1 Movement Vi Keybinds 0 Fullscreen 2 Font 24/Smallcaps Map View 50x40 Zoom Use 0% Tactical HUD 1 Map Filters NONE Filters NONE Steam 1 RUN: 4ee7dfef-4e16-40a6-8d26-eb1ec9a08d0d